fUSD/lending_fUSD_20260607
["ID","MTS","AMOUNT","RATE_DAILY","PERIOD"]
[424377589,1780821741000,-11304.89,0.00038461,120]
[424377592,1780821741000,-11304.89,0.00038461,120]
[424377591,1780821741000,-11304.89,0.00038461,120]
[424377596,1780821741000,-11304.89,0.00038461,120]
[424377594,1780821741000,-11304.89,0.00038461,120]
[424377593,1780821741000,-11304.89,0.00038461,120]
[424377595,1780821741000,-11304.89,0.00038461,120]
[424377590,1780821741000,-11304.89,0.00038461,120]
[424377597,1780821742000,-11304.89,0.00038461,120]
[424377598,1780821742000,-11304.89,0.00038461,120]
[424377599,1780821742000,-11304.89,0.00038461,120]
[424377600,1780821742000,-11304.89,0.00038461,120]
[424377601,1780821742000,-11304.89,0.00038461,120]
[424377602,1780821742000,-11304.89,0.00038461,120]
[424377603,1780821742000,-11304.89,0.00038461,120]
[424377605,1780821742000,-11304.89628899,0.00038461,120]
[424377604,1780821742000,-11304.89,0.00038461,120]
[424377613,1780821742000,-498.73037862,0.00038461,120]
[424377608,1780821742000,-639.50188838,0.00038461,120]
[424377607,1780821742000,-500.0,0.00038461,120]
[424377609,1780821742000,-241.26849296,0.00038461,120]
[424377610,1780821742000,-267.96598809,0.00038461,120]
[424377611,1780821742000,-5783.0060448,0.00038461,90]
[424377612,1780821742000,-171.57562525,0.00038461,120]
[424377614,1780821742000,-175.4616873,0.00038461,120]
[424377606,1780821742000,-37649.06325872,0.00038461,120]
[424377621,1780821743000,-220.22326156,0.00038461,120]
[424377619,1780821743000,-196.60203045,0.00038461,120]
[424377618,1780821743000,-628.56222755,0.00038461,30]
[424377620,1780821743000,-257.21843061,0.00038461,120]
[424377615,1780821743000,-254.3374911,0.00038461,120]
[424377616,1780821743000,-241.41468791,0.00038461,120]
[424377617,1780821743000,-215.67684121,0.00038461,120]
[424377623,1780821743000,-421.24756667,0.00038461,120]
[424377622,1780821743000,-278.73395943,0.00038461,120]
[424377625,1780821743000,-253.05422081,0.00038461,120]
[424377630,1780821743000,-311.52046519,0.00038461,120]
[424377631,1780821743000,-403.6594,0.00038461,120]
[424377629,1780821743000,-155.76575335,0.00038461,120]
[424377632,1780821743000,-214.60299064,0.00038461,120]
[424377627,1780821743000,-234.20513215,0.00038461,120]
[424377626,1780821743000,-205.50312734,0.00038461,120]
[424377633,1780821743000,-185.8113023,0.00038461,120]
[424377628,1780821743000,-428.78924047,0.00038461,120]
[424377624,1780821743000,-173.3948948,0.00038461,120]
[424377641,1780821744000,-506.39795828,0.00038461,120]
[424377634,1780821744000,-209.07104285,0.00038461,120]
[424377636,1780821744000,-172.33085813,0.00038461,120]
[424377635,1780821744000,-526.35178045,0.00038461,120]
[424377638,1780821744000,-412.19004398,0.00038461,120]
[424377637,1780821744000,-169.28978622,0.00038461,120]
[424377640,1780821744000,-500.0,0.00038461,120]
[424377639,1780821744000,-225.42913886,0.00038461,120]
[424377643,1780821744000,-156.51263749,0.00038461,120]
[424377645,1780821744000,-402.67484182,0.00038461,120]
[424377644,1780821744000,-520.49803793,0.00038461,120]
[424377646,1780821744000,-205.40450872,0.00038461,120]
[424377647,1780821744000,-433.65594118,0.00038461,120]
[424377648,1780821744000,-154.46419055,0.00038461,120]
[424377649,1780821744000,-150.91961444,0.00038461,120]
[424377650,1780821744000,-459.63520917,0.00038461,120]
[424377651,1780821744000,-177.65305863,0.00038461,120]
[424377642,1780821744000,-169.34416111,0.00038461,120]
[424377657,1780821745000,-641.24430558,0.00038461,120]
[424377656,1780821745000,-154.88974125,0.00038461,120]
[424377655,1780821745000,-169.99065518,0.00038461,120]
[424377659,1780821745000,-284.35636488,0.00038461,120]
[424377653,1780821745000,-151.78310508,0.00038461,120]
[424377652,1780821745000,-161.688927,0.00038461,120]
[424377654,1780821745000,-232.06923367,0.00038461,120]
[424377660,1780821745000,-170.96438853,0.00038461,120]
[424377658,1780821745000,-297.88219798,0.00038461,120]
[424377661,1780821745000,-177.6905139,0.00038461,120]
[424377669,1780821745000,-176.74286944,0.00038461,120]
[424377668,1780821745000,-554.83729918,0.00038461,120]
[424377667,1780821745000,-156.49880072,0.00038461,120]
[424377665,1780821745000,-461.67679933,0.00038461,120]
[424377662,1780821745000,-228.53584456,0.00038461,120]
[424377663,1780821745000,-189.0563522,0.00038461,120]
[424377670,1780821745000,-155.92280678,0.00038461,120]
[424377664,1780821745000,-500.0,0.00038461,120]
[424377666,1780821745000,-467.74253513,0.00038461,120]
[424377679,1780821746000,-150.25538406,0.00038461,120]
[424377672,1780821746000,-165.00010599,0.00038461,120]
[424377673,1780821746000,-331.31859317,0.00038461,120]
[424377674,1780821746000,-1186.78988495,0.00038461,120]
[424377676,1780821746000,-500.0,0.00038461,120]
[424377675,1780821746000,-375.5111,0.00038461,120]
[424377677,1780821746000,-500.0,0.00038461,120]
[424377678,1780821746000,-332.82980929,0.00038461,120]
[424377671,1780821746000,-622.52299719,0.00038461,120]
[424377680,1780821746000,-338.44572949,0.00038461,120]
[424377682,1780821746000,-202.42667702,0.00038461,120]
[424377684,1780821746000,-163.81035353,0.00038461,120]
[424377683,1780821746000,-312.22670097,0.00038461,120]
[424377685,1780821746000,-208.79961868,0.00038461,120]
[424377686,1780821746000,-290.20384276,0.00038461,120]
[424377687,1780821746000,-208.81753609,0.00038461,120]
[424377688,1780821746000,-159.76549114,0.00038461,120]
[424377690,1780821746000,-391.72267373,0.00038461,120]
[424377689,1780821746000,-237.02387741,0.00038461,120]
[424377681,1780821746000,-272.55558253,0.00038461,120]
[424377698,1780821747000,-166.65402528,0.00038461,120]
[424377697,1780821747000,-211.11521808,0.00038461,120]
[424377696,1780821747000,-165.44764685,0.00038461,120]
[424377691,1780821747000,-312.07126487,0.00038461,120]
[424377694,1780821747000,-555.86900917,0.00038461,120]
[424377693,1780821747000,-500.0,0.00038461,120]
[424377692,1780821747000,-174.26765924,0.00038461,120]
[424377695,1780821747000,-157.23530805,0.00038461,120]
[424377699,1780821747000,-500.0,0.00038461,120]
[424377701,1780821747000,-366.72920732,0.00038461,120]
[424377702,1780821747000,-152.83587233,0.00038461,120]
[424377709,1780821747000,-205.44810051,0.00038461,120]
[424377708,1780821747000,-151.09938205,0.00038461,120]
[424377707,1780821747000,-401.08991455,0.00038461,120]
[424377700,1780821747000,-509.38767828,0.00038461,120]
[424377704,1780821747000,-163.74526438,0.00038461,120]
[424377705,1780821747000,-205.33176583,0.00038461,120]
[424377703,1780821747000,-278.97173796,0.00038461,120]
[424377706,1780821747000,-487.4709106,0.00038461,120]
[424377718,1780821748000,-170.22367639,0.00038461,120]
[424377711,1780821748000,-247.21624982,0.00038461,120]
[424377712,1780821748000,-262.50248849,0.00038461,120]
[424377713,1780821748000,-220.04873304,0.00038461,120]
[424377714,1780821748000,-177.52171034,0.00038461,120]
[424377715,1780821748000,-156.03002476,0.00038461,120]
[424377716,1780821748000,-228.60391845,0.00038461,120]
[424377717,1780821748000,-293.77455329,0.00038461,120]
[424377710,1780821748000,-191.72311273,0.00038461,120]
[424377719,1780821748000,-156.11087159,0.00038461,120]
[424377720,1780821748000,-273.33795951,0.00038461,120]
[424377722,1780821748000,-500.0,0.00038461,120]
[424377723,1780821748000,-500.0,0.00038461,120]
[424377725,1780821748000,-500.0,0.00038461,120]
[424377724,1780821748000,-500.0,0.00038461,120]
[424377726,1780821748000,-500.0,0.00038461,120]
[424377728,1780821748000,-500.0,0.00038461,120]
[424377727,1780821748000,-500.0,0.00038461,120]
[424377721,1780821748000,-159.86359026,0.00038461,120]
[424377734,1780821749000,-500.0,0.00038461,120]
[424377733,1780821749000,-500.0,0.00038461,120]
[424377731,1780821749000,-500.0,0.00038461,120]
[424377735,1780821749000,-500.0,0.00038461,120]
[424377729,1780821749000,-500.0,0.00038461,120]
[424377730,1780821749000,-500.0,0.00038461,120]
[424377732,1780821749000,-500.0,0.00038461,120]
[424377737,1780821749000,-156.02898468,0.00038461,120]
[424377736,1780821749000,-452.39830963,0.00038461,120]
[424377738,1780821749000,-172.09429135,0.00038461,120]
[424377744,1780821749000,-174.62393518,0.00038461,120]
[424377745,1780821749000,-153.00324567,0.00038461,120]
[424377742,1780821749000,-176.62194753,0.00038461,120]
[424377739,1780821749000,-160.65996375,0.00038461,120]
[424377740,1780821749000,-157.51455532,0.00038461,120]
[424377741,1780821749000,-174.14306398,0.00038461,120]
[424377746,1780821749000,-1685.2002,0.00038461,120]
[424377743,1780821749000,-151.54307863,0.00038461,120]
[424377747,1780821750000,-163.5476271,0.00038461,120]
[424377748,1780821750000,-200.44230156,0.00038461,120]
[424377750,1780821750000,-1125.0,0.00038461,30]
[424377749,1780821750000,-163.74930144,0.00038461,120]
[424377752,1780821750000,-1125.0,0.00038461,30]
[424377751,1780821750000,-1125.0,0.00038461,30]
[424377753,1780821750000,-150.01194272,0.00038461,120]
[424377755,1780821750000,-179.85812936,0.00038461,120]
[424377756,1780821750000,-168.62792688,0.00038461,120]
[424377754,1780821750000,-166.82811592,0.00038461,120]
[424377758,1780821750000,-225.10903514,0.00038461,120]
[424377766,1780821750000,-668.87,0.00038461,120]
[424377757,1780821750000,-159.65456252,0.00038461,120]
[424377764,1780821750000,-668.87,0.00038461,120]
[424377763,1780821750000,-668.87,0.00038461,120]
[424377765,1780821750000,-668.87,0.00038461,120]
[424377761,1780821750000,-325.99,0.00038461,120]
[424377760,1780821750000,-499.10601816,0.00038461,30]
[424377759,1780821750000,-161.30766361,0.00038461,120]
[424377762,1780821750000,-668.87,0.00038461,120]
[424377767,1780821751000,-668.87,0.00038461,120]
[424377768,1780821751000,-668.87,0.00038461,120]
[424377769,1780821751000,-668.87,0.00038461,120]
[424377770,1780821751000,-668.87,0.00038461,120]
[424377772,1780821751000,-668.87,0.00038461,120]
[424377771,1780821751000,-668.87,0.00038461,120]
[424377774,1780821751000,-668.87,0.00038461,120]
[424377776,1780821751000,-668.87,0.00038461,120]
[424377773,1780821751000,-668.87,0.00038461,120]
[424377777,1780821751000,-668.87,0.00038461,120]
[424377785,1780821751000,-500.0,0.00038461,120]
[424377783,1780821751000,-668.87,0.00038461,120]
[424377784,1780821751000,-668.87,0.00038461,120]
[424377782,1780821751000,-668.87,0.00038461,120]
[424377775,1780821751000,-668.87,0.00038461,120]
[424377779,1780821751000,-668.87,0.00038461,120]
[424377780,1780821751000,-668.87,0.00038461,120]
[424377778,1780821751000,-668.87,0.00038461,120]
[424377781,1780821751000,-668.87,0.00038461,120]
[424377786,1780821752000,-500.0,0.00038461,120]
[424377787,1780821752000,-500.0,0.00038461,120]
[424377789,1780821752000,-500.0,0.00038461,120]
[424377788,1780821752000,-500.0,0.00038461,120]
[424377790,1780821752000,-500.0,0.00038461,120]
[424377791,1780821752000,-500.0,0.00038461,120]
[424377792,1780821752000,-500.0,0.00038461,120]
[424377794,1780821752000,-500.0,0.00038461,120]
[424377795,1780821752000,-500.0,0.00038461,120]
[424377793,1780821752000,-500.0,0.00038461,120]
[424377796,1780821752000,-6000.0,0.00038461,120]
[424377805,1780821752000,-181.37072694,0.00038461,120]
[424377803,1780821752000,-2156.99285638,0.00038461,120]
[424377802,1780821752000,-274.05300028,0.00038461,120]
[424377804,1780821752000,-158.84219849,0.00038461,30]
[424377801,1780821752000,-329.23370156,0.00038461,30]
[424377799,1780821752000,-291.31090518,0.00038461,30]
[424377798,1780821752000,-2000.0,0.00038461,120]
[424377800,1780821752000,-349.92020584,0.00038461,60]
[424377797,1780821752000,-5000.0,0.00038461,120]
[424377812,1780821753000,-155.88538346,0.00038461,90]
[424377807,1780821753000,-952.33141861,0.00038461,120]
[424377806,1780821753000,-575.56416202,0.00038461,120]
[424377808,1780821753000,-157.38204397,0.00038461,120]
[424377809,1780821753000,-190.50482485,0.00038461,120]
[424377811,1780821753000,-427.49642318,0.00038461,30]
[424377810,1780821753000,-162.17069195,0.00038461,31]
[424377813,1780821753000,-158.26663221,0.00038461,120]
[424377815,1780821753000,-166.82108071,0.00038461,30]
[424377816,1780821753000,-272.37860804,0.00038461,120]
[424377823,1780821753000,-433.23373094,0.00038461,120]
[424377822,1780821753000,-516.25343575,0.00038461,120]
[424377821,1780821753000,-500.0,0.00038461,120]
[424377814,1780821753000,-1030.15451626,0.00038461,120]
[424377819,1780821753000,-500.0,0.00038461,120]
[424377817,1780821753000,-5487.84,0.00038461,30]
[424377818,1780821753000,-2880.07161473,0.00038461,34]
[424377820,1780821753000,-500.0,0.00038461,120]
[424377824,1780821754000,-500.0,0.00038461,120]
[424377825,1780821754000,-500.0,0.00038461,120]
[424377826,1780821754000,-500.0,0.00038461,120]
[424377827,1780821754000,-500.0,0.00038461,120]
[424377828,1780821754000,-500.0,0.00038461,120]
[424377829,1780821754000,-500.0,0.00038461,120]
[424377830,1780821754000,-500.0,0.00038461,120]
[424377832,1780821754000,-500.0,0.00038461,120]
[424377831,1780821754000,-500.0,0.00038461,120]
[424377833,1780821754000,-500.0,0.00038461,120]
[424377834,1780821754000,-500.0,0.00038461,120]
[424377837,1780821754000,-500.0,0.00038461,120]
[424377836,1780821754000,-500.0,0.00038461,120]
[424377839,1780821754000,-500.0,0.00038461,120]
[424377838,1780821754000,-500.0,0.00038461,120]
[424377841,1780821754000,-500.0,0.00038461,120]
[424377840,1780821754000,-500.0,0.00038461,120]
[424377842,1780821754000,-500.0,0.00038461,120]
[424377835,1780821754000,-508.48873653,0.00038461,120]
[424377849,1780821755000,-519.14,0.00038461,120]
[424377850,1780821755000,-519.14,0.00038461,120]
[424377847,1780821755000,-517.95230658,0.00038461,120]
[424377852,1780821755000,-519.14,0.00038461,120]
[424377846,1780821755000,-500.0,0.00038461,120]
[424377845,1780821755000,-500.0,0.00038461,120]
[424377844,1780821755000,-500.0,0.00038461,120]
[424377848,1780821755000,-519.14,0.00038461,120]
[424377843,1780821755000,-500.0,0.00038461,120]
[424377851,1780821755000,-519.14,0.00038461,120]
[424377854,1780821755000,-519.14,0.00038461,120]
[424377860,1780821755000,-519.14,0.00038461,120]
[424377861,1780821755000,-519.14,0.00038461,120]
[424377859,1780821755000,-519.14,0.00038461,120]
[424377853,1780821755000,-519.14,0.00038461,120]
[424377856,1780821755000,-519.14,0.00038461,120]
[424377857,1780821755000,-519.14,0.00038461,120]
[424377855,1780821755000,-519.14,0.00038461,120]
[424377858,1780821755000,-519.14,0.00038461,120]
[424377870,1780821756000,-519.14,0.00038461,120]
[424377862,1780821756000,-519.14,0.00038461,120]
[424377865,1780821756000,-519.14,0.00038461,120]
[424377864,1780821756000,-519.14,0.00038461,120]
[424377866,1780821756000,-519.14,0.00038461,120]
[424377867,1780821756000,-519.14,0.00038461,120]
[424377868,1780821756000,-519.14,0.00038461,120]
[424377863,1780821756000,-519.14,0.00038461,120]
[424377869,1780821756000,-519.14,0.00038461,120]
[424377872,1780821756000,-520.76515405,0.00038461,120]
[424377873,1780821756000,-441.17139826,0.00038461,120]
[424377874,1780821756000,-500.0,0.00038461,120]
[424377875,1780821756000,-500.0,0.00038461,120]
[424377876,1780821756000,-500.0,0.00038461,120]
[424377878,1780821756000,-3530.0,0.00038461,120]
[424377877,1780821756000,-153.94520664,0.00038461,120]
[424377879,1780821756000,-500.0,0.00038461,120]
[424377871,1780821756000,-519.27792476,0.00038461,120]
[424377885,1780821757000,-500.0,0.00038461,120]
[424377886,1780821757000,-262.16739552,0.00038461,120]
[424377884,1780821757000,-500.0,0.00038461,120]
[424377887,1780821757000,-500.0,0.00038461,120]
[424377882,1780821757000,-500.0,0.00038461,120]
[424377881,1780821757000,-500.0,0.00038461,120]
[424377880,1780821757000,-500.0,0.00038461,120]
[424377883,1780821757000,-500.0,0.00038461,120]
[424377888,1780821757000,-500.0,0.00038461,120]
[424377897,1780821757000,-500.0,0.00038461,120]
[424377890,1780821757000,-500.0,0.00038461,120]
[424377898,1780821757000,-500.0,0.00038461,120]
[424377899,1780821757000,-500.0,0.00038461,120]
[424377896,1780821757000,-500.0,0.00038461,120]
[424377895,1780821757000,-500.0,0.00038461,120]
[424377889,1780821757000,-500.0,0.00038461,120]
[424377894,1780821757000,-500.0,0.00038461,120]
[424377892,1780821757000,-500.0,0.00038461,120]
[424377891,1780821757000,-500.0,0.00038461,120]
[424377893,1780821757000,-500.0,0.00038461,120]
[424377907,1780821758000,-500.0,0.00038461,120]
[424377900,1780821758000,-273.36156173,0.00038461,120]
[424377901,1780821758000,-500.0,0.00038461,30]
[424377902,1780821758000,-88498.77,0.00038461,120]
[424377903,1780821758000,-496.0,0.00038461,60]
[424377904,1780821758000,-3378.7266147,0.00038461,60]
[424377905,1780821758000,-514230.19884898,0.00038461,120]
[424377906,1780821758000,-500.0,0.00038461,120]
[424377908,1780821758000,-500.0,0.00038461,120]
[424377909,1780821758000,-500.0,0.00038461,120]
[424377910,1780821758000,-500.0,0.00038461,120]
[424377917,1780821758000,-500.0,0.00038461,120]
[424377916,1780821758000,-500.0,0.00038461,120]
[424377915,1780821758000,-500.0,0.00038461,120]
[424377918,1780821758000,-329.66195694,0.00038461,120]
[424377913,1780821758000,-500.0,0.00038461,120]
[424377912,1780821758000,-500.0,0.00038461,120]
[424377911,1780821758000,-500.0,0.00038461,120]
[424377914,1780821758000,-500.0,0.00038461,120]
[424377927,1780821759000,-500.0,0.00038461,120]
[424377919,1780821759000,-500.0,0.00038461,120]
[424377920,1780821759000,-500.0,0.00038461,120]
[424377921,1780821759000,-500.0,0.00038461,120]
[424377922,1780821759000,-500.0,0.00038461,120]
[424377923,1780821759000,-500.0,0.00038461,120]
[424377924,1780821759000,-500.0,0.00038461,120]
[424377925,1780821759000,-436.31900476,0.00038461,120]
[424377926,1780821759000,-500.0,0.00038461,120]
[424377932,1780821759000,-203.2001001,0.00038461,120]
[424377930,1780821759000,-500.0,0.00038461,120]
[424377929,1780821759000,-500.0,0.00038461,120]
[424377937,1780821759000,-500.0,0.00038461,120]
[424377931,1780821759000,-500.0,0.00038461,120]
[424377933,1780821759000,-500.0,0.00038461,120]
[424377934,1780821759000,-500.0,0.00038461,120]
[424377936,1780821759000,-500.0,0.00038461,120]
[424377935,1780821759000,-500.0,0.00038461,120]
[424377928,1780821759000,-500.0,0.00038461,120]
[424377943,1780821760000,-500.0,0.00038461,120]
[424377944,1780821760000,-205.76681019,0.00038461,120]
[424377941,1780821760000,-500.0,0.00038461,120]
[424377938,1780821760000,-500.0,0.00038461,120]
[424377939,1780821760000,-433.69234496,0.00038461,120]
[424377940,1780821760000,-322.748,0.00038461,120]
[424377942,1780821760000,-286.55296975,0.00038461,120]
[424377945,1780821760000,-500.0,0.00038461,120]
[424377947,1780821760000,-500.0,0.00038461,120]
[424377949,1780821760000,-500.0,0.00038461,120]
[424377948,1780821760000,-500.0,0.00038461,120]
[424377950,1780821760000,-500.0,0.00038461,120]
[424377951,1780821760000,-500.0,0.00038461,120]
[424377952,1780821760000,-500.0,0.00038461,120]
[424377953,1780821760000,-500.0,0.00038461,120]
[424377954,1780821760000,-500.0,0.00038461,120]
[424377946,1780821760000,-500.0,0.00038461,120]
[424377958,1780821761000,-613.23543161,0.00038461,120]
[424377955,1780821761000,-500.0,0.00038461,120]
[424377956,1780821761000,-202.54498017,0.00038461,120]
[424377957,1780821761000,-500.0,0.00038461,120]
[424377959,1780821761000,-23529.17564403,0.00038461,120]
[424377963,1780821761000,-1001.34,0.00038461,120]
[424377961,1780821761000,-1001.35,0.00038461,120]
[424377964,1780821761000,-10585.94,0.00038461,120]
[424377960,1780821761000,-1001.35,0.00038461,120]
[424377962,1780821761000,-1001.35,0.00038461,120]
[424377965,1780821761000,-17912099.27060352,0.00038461,30]
[424377969,1780821766000,152.0,0.00029579,120]
[424377968,1780821766000,152.0,8.542e-05,30]
[424377966,1780821766000,152.0,9.718e-05,7]
[424377967,1780821766000,152.0,9.724e-05,7]
[424378292,1780822052000,708.4212448,0.00030136,120]
[424378293,1780822060000,152.0,9.736e-05,7]
[424378294,1780822077000,1800.0,0.00030137,120]
[424378295,1780822090000,152.0,9.729e-05,7]
[424378296,1780822091000,152.0,9.729e-05,7]
[424378298,1780822092000,152.0,9.732e-05,7]
[424378297,1780822092000,152.0,9.729e-05,7]
[424378299,1780822093000,152.0,9.732e-05,7]
[424378300,1780822094000,152.0,9.735e-05,7]
[424378302,1780822095000,152.0,8.563e-05,30]
[424378301,1780822095000,152.0,8.545e-05,30]
[424378303,1780822096000,152.0,0.00029603,120]
[424378304,1780822097000,152.0,0.00029603,120]
[424378306,1780822160000,-125.06747808,8.203e-05,2]
[424378305,1780822160000,-150.0,7.957e-05,2]
[424378307,1780822187000,152.0,9.729e-05,7]
[424378309,1780822188000,152.0,9.732e-05,7]
[424378308,1780822188000,152.0,9.732e-05,7]
[424378311,1780822189000,152.0,8.545e-05,30]
[424378310,1780822189000,152.0,9.735e-05,7]
[424378312,1780822190000,152.0,8.545e-05,30]
[424378313,1780822191000,152.0,8.563e-05,30]
[424378315,1780822192000,152.0,0.00029603,120]
[424378314,1780822192000,152.0,0.00029603,120]
[424378324,1780822231000,-155.09,8.983e-05,2]
[424378322,1780822231000,-26.93252192,8.203e-05,2]
[424378323,1780822231000,-152.0,8.203e-05,2]
[424378326,1780822232000,-129.38351637,9.023e-05,2]
[424378325,1780822232000,-224.29,8.994e-05,2]
[424378327,1780822232000,-75.07666755,9.023e-05,2]
[424378330,1780822232000,-229.44684137,9.059e-05,2]
[424378329,1780822232000,-252.94315863,9.059e-05,2]
[424378331,1780822232000,-281.30588729,9.087e-05,2]
[424378328,1780822232000,-205.52,9.046e-05,2]
[424378332,1780822232000,-388.57,9.087e-05,2]
[424378336,1780822232000,-99.47482898,9.304e-05,2]
[424378333,1780822232000,-461.13700391,9.134e-05,2]
[424378337,1780822232000,-281.30588729,9.468e-05,2]
[424378335,1780822232000,-60.52517102,9.304e-05,2]
[424378339,1780822232000,-19.45877326,9.848e-05,2]
[424378338,1780822232000,-150.0,9.848e-05,2]
[424378340,1780822232000,-167.17924487,9.848e-05,2]
[424378341,1780822232000,-384.46325968,9.848e-05,2]
[424378334,1780822232000,-438.08299609,9.134e-05,2]
[424378355,1780822239000,-437.08027873,9.848e-05,2]
[424378347,1780822239000,-115.53674032,9.848e-05,2]
[424378353,1780822239000,-427.34554713,9.848e-05,2]
[424378348,1780822239000,-500.0,9.848e-05,2]
[424378350,1780822239000,-500.0,9.848e-05,2]
[424378357,1780822239000,-500.0,9.848e-05,2]
[424378349,1780822239000,-500.0,9.848e-05,2]
[424378352,1780822239000,-500.0,9.848e-05,2]
[424378359,1780822239000,-500.0,9.848e-05,2]
[424378351,1780822239000,-213.58286756,9.848e-05,2]
[424378360,1780822239000,-411.56649335,9.848e-05,2]
[424378369,1780822239000,-12562.27761048,9.849e-05,2]
[424378370,1780822239000,-728.0,9.849e-05,2]
[424378368,1780822239000,-1241.49744497,9.849e-05,2]
[424378365,1780822239000,-281.30588729,9.849e-05,2]
[424378358,1780822239000,-500.0,9.848e-05,2]
[424378364,1780822239000,-225.27563089,9.848e-05,2]
[424378362,1780822239000,-420.95681244,9.848e-05,2]
[424378363,1780822239000,-500.0,9.848e-05,2]
[424378366,1780822239000,-2000.0,9.849e-05,2]
[424378367,1780822239000,-56359.81080538,9.849e-05,2]
[424378397,1780822240000,-5435.8750655,9.849e-05,2]
[424378383,1780822240000,-1341.16383542,9.849e-05,2]
[424378419,1780822249000,-527.31425,9.849e-05,2]
[424378418,1780822249000,-824.89324459,9.849e-05,2]
[424378417,1780822249000,-2645.88227612,9.849e-05,2]
[424378416,1780822249000,-3598.09479527,9.849e-05,2]
[424378414,1780822249000,-1213.16258229,9.849e-05,2]
[424378415,1780822249000,-6270.95,9.849e-05,2]
[424378413,1780822249000,-79341.89934589,9.849e-05,2]
[424378631,1780822252000,152.0,5.866e-05,2]
[424378632,1780822253000,152.0,9.729e-05,7]
[424378633,1780822254000,152.0,9.732e-05,7]
[424378635,1780822255000,152.0,8.545e-05,30]
[424378634,1780822255000,152.0,9.735e-05,7]
[424378637,1780822256000,152.0,0.00029621,120]
[424378636,1780822256000,152.0,8.545e-05,30]
[424378640,1780822336000,1000.0,0.0003,120]
[424378642,1780822355000,152.0,9.73e-05,7]
[424378641,1780822355000,152.0,9.73e-05,7]
[424378644,1780822359000,937.44721039,0.00023898,120]
[424378643,1780822359000,937.44721039,0.00023834,120]
[424378645,1780822360000,937.44721039,0.00023962,120]
[424378646,1780822377000,150.0,0.00011233,120]
[424378647,1780822396000,500.0,0.00024999,120]
[424378648,1780822494000,350.0,9.836e-05,3]
[424378649,1780822557000,2938.8,0.00030137,120]
[424378650,1780822669000,369.58,0.00030136,120]
[424378651,1780822677000,369.58,0.00030136,120]
[424378652,1780822684000,369.58,0.00030136,120]
[424378653,1780822688000,2281.77,0.00030082,120]
[424378654,1780822691000,369.58,0.00030136,120]
[424378655,1780822699000,369.58,0.00030136,120]
[424378657,1780822816000,656.0,0.00029149,120]
[424378659,1780822835000,333.0,0.00029311,120]
[424378658,1780822835000,152.0,9.736e-05,7]
[424378660,1780822864000,151.16,0.00030136,120]
[424378662,1780822889000,350.0,9.836e-05,3]
[424378664,1780823107000,459.0,0.00029128,120]
[424378665,1780823133000,200.0,0.00029094,120]
[424378666,1780823158000,150.0,0.00011233,120]
[424378668,1780823289000,350.0,9.836e-05,3]
[424378669,1780823341000,2000.0,0.00030136,120]
[424378670,1780823409000,322.0,0.00029164,120]
[424378674,1780823432000,-291.24090056,8.816e-05,2]
[424378675,1780823432000,-150.0,8.904e-05,2]
[424378676,1780823432000,-1000.0,8.92e-05,2]
[424378679,1780823432000,-200.0,8.933e-05,2]
[424378680,1780823432000,-193.0,8.941e-05,2]
[424378677,1780823432000,-1929.29830924,8.923e-05,2]
[424378678,1780823432000,-150.0,8.926e-05,2]
[424378673,1780823432000,-618.44909944,8.816e-05,2]
[424378682,1780823432000,-570.3243232,8.949e-05,2]
[424378686,1780823432000,-161.62,9.126e-05,2]
[424378683,1780823432000,-284.48801384,8.976e-05,2]